fUSD/lending_fUSD_20240519
["ID","MTS","AMOUNT","RATE_DAILY","PERIOD"]
[327493345,1716125450564,-500.0,0.00025546,2]
[327493346,1716125450573,-500.0,0.00025546,2]
[327493347,1716125450583,-500.0,0.00025546,2]
[327493348,1716125450592,-1608.23,0.00025546,2]
[327493349,1716125450602,-416.97326021,0.00025546,2]
[327493350,1716125450611,-500.0,0.00025546,2]
[327493351,1716125450620,-9478.72,0.00025546,2]
[327493352,1716125450630,-500.0,0.00025546,2]
[327493353,1716125450639,-506.363244,0.00025546,7]
[327493354,1716125450649,-500.0,0.00025547,2]
[327493355,1716125450658,-500.0,0.00025547,2]
[327493356,1716125450667,-500.0,0.00025547,2]
[327493357,1716125450676,-500.0,0.00025547,2]
[327493358,1716125450685,-537.78095321,0.00025547,2]
[327493359,1716125450695,-386.31,0.00025547,2]
[327493360,1716125450704,-500.0,0.00025547,2]
[327493361,1716125450713,-244.66202685,0.00025547,2]
[327493362,1716125450723,-500.0,0.00025547,2]
[327493363,1716125450731,-500.0,0.00025547,2]
[327493364,1716125450740,-500.0,0.00025547,2]
[327493365,1716125450750,-560.17852825,0.00025547,2]
[327493366,1716125450759,-441.69075116,0.00025547,2]
[327493367,1716125450768,-500.0,0.00025547,2]
[327493368,1716125450779,-500.0,0.00025547,7]
[327493369,1716125450787,-500.0,0.00025547,2]
[327493370,1716125450797,-424.2356826,0.00025547,2]
[327493371,1716125450806,-500.0,0.00025547,2]
[327493372,1716125450815,-518.73977334,0.00025547,2]
[327493373,1716125450825,-500.0,0.00025547,2]
[327493374,1716125450834,-500.0,0.00025547,2]
[327493375,1716125450844,-606.46,0.00025547,2]
[327493376,1716125450854,-192.94511212,0.00025547,2]
[327493377,1716125450863,-500.0,0.00025547,2]
[327493378,1716125450873,-500.0,0.00025547,2]
[327493379,1716125450882,-500.0,0.00025547,2]
[327493380,1716125450891,-500.0,0.00025547,2]
[327493381,1716125450901,-606.15,0.00025547,2]
[327493382,1716125450910,-500.0,0.00025547,2]
[327493383,1716125450919,-500.0,0.00025547,2]
[327493384,1716125450929,-500.0,0.00025547,2]
[327493385,1716125450939,-500.0,0.00025547,2]
[327493386,1716125450948,-500.0,0.00025547,2]
[327493387,1716125450957,-500.0,0.00025547,2]
[327493388,1716125450967,-500.0,0.00025547,2]
[327493389,1716125450977,-500.0,0.00025547,2]
[327493390,1716125450986,-500.0,0.00025547,2]
[327493391,1716125450995,-173.91107179,0.00025547,2]
[327493392,1716125451004,-500.0,0.00025547,2]
[327493393,1716125451013,-500.0,0.00025547,2]
[327493394,1716125451023,-500.0,0.00025547,2]
[327493395,1716125451034,-408.84,0.00025547,2]
[327493396,1716125451043,-500.0,0.00025547,2]
[327493397,1716125451051,-500.0,0.00025547,2]
[327493398,1716125451060,-500.0,0.00025547,2]
[327493399,1716125451070,-368.69,0.00025547,2]
[327493400,1716125451079,-500.0,0.00025547,2]
[327493401,1716125451088,-500.0,0.00025547,2]
[327493402,1716125451097,-409.92430238,0.00025547,2]
[327493403,1716125451106,-267.12217693,0.00025547,2]
[327493404,1716125451115,-500.0,0.00025547,2]
[327493405,1716125451125,-500.0,0.00025547,2]
[327493406,1716125451133,-500.0,0.00025547,2]
[327493407,1716125451143,-500.0,0.00025547,2]
[327493408,1716125451152,-500.0,0.00025547,2]
[327493409,1716125451164,-500.0,0.00025547,2]
[327493410,1716125451173,-500.0,0.00025547,2]
[327493411,1716125451182,-292.40976399,0.00025547,2]
[327493412,1716125451191,-238.58,0.00025547,2]
[327493413,1716125451200,-500.0,0.00025547,2]
[327493414,1716125451210,-573.48,0.00025547,2]
[327493415,1716125451220,-500.0,0.00025547,2]
[327493416,1716125451229,-449.07,0.00025547,2]
[327493417,1716125451239,-500.0,0.00025547,2]
[327493418,1716125451252,-192.08,0.00025547,2]
[327493419,1716125451262,-500.0,0.00025547,2]
[327493420,1716125451271,-500.0,0.00025547,2]
[327493421,1716125451282,-500.0,0.00025547,2]
[327493422,1716125451292,-500.0,0.00025547,2]
[327493423,1716125451300,-416.53,0.00025547,2]
[327493424,1716125451310,-815.2,0.00025547,2]
[327493425,1716125451319,-615.48,0.00025547,2]
[327493426,1716125451329,-500.0,0.00025547,2]
[327493427,1716125451338,-500.0,0.00025547,2]
[327493428,1716125451348,-500.0,0.00025547,2]
[327493429,1716125451358,-500.0,0.00025547,2]
[327493430,1716125451368,-500.0,0.00025547,2]
[327493431,1716125451377,-500.0,0.00025547,2]
[327493432,1716125451388,-500.0,0.00025547,2]
[327493433,1716125451398,-500.0,0.00025547,2]
[327493434,1716125451407,-332.00947674,0.00025547,2]
[327493435,1716125451417,-500.0,0.00025547,2]
[327493436,1716125451427,-624.37,0.00025547,2]
[327493437,1716125451437,-500.0,0.00025547,2]
[327493438,1716125451446,-500.0,0.00025547,2]
[327493439,1716125451456,-364.74,0.00025547,2]
[327493440,1716125451466,-500.0,0.00025547,2]
[327493441,1716125451476,-500.0,0.00025547,2]
[327493442,1716125451485,-500.0,0.00025547,2]
[327493443,1716125451495,-236.19,0.00025547,2]
[327493444,1716125451504,-725.95,0.00025547,2]
[327493445,1716125451513,-500.0,0.00025547,2]
[327493446,1716125451523,-286.18925041,0.00025547,2]
[327493447,1716125451534,-504.245088,0.00025547,2]
[327493448,1716125451543,-156.14,0.00025547,2]
[327493449,1716125451552,-500.0,0.00025547,2]
[327493450,1716125451562,-500.0,0.00025547,2]
[327493451,1716125451571,-500.0,0.00025547,2]
[327493452,1716125451580,-501.33,0.00025547,2]
[327493453,1716125451590,-340.247276,0.00025547,2]
[327493454,1716125451599,-500.0,0.00025547,2]
[327493455,1716125451609,-249.52,0.00025547,2]
[327493456,1716125451619,-500.0,0.00025547,2]
[327493457,1716125451628,-500.0,0.00025547,2]
[327493458,1716125451639,-220.814511,0.00025547,7]
[327493459,1716125451649,-530.65,0.00025547,2]
[327493460,1716125451658,-220.814511,0.00025547,7]
[327493461,1716125451667,-500.0,0.00025547,2]
[327493462,1716125451676,-151.0,0.00025547,7]
[327493463,1716125451685,-500.0,0.00025547,2]
[327493464,1716125451695,-150.0,0.00025547,2]
[327493465,1716125451705,-500.0,0.00025547,2]
[327493466,1716125451715,-500.0,0.00025547,2]
[327493467,1716125451724,-500.0,0.00025547,2]
[327493468,1716125451735,-500.0,0.00025547,2]
[327493469,1716125451744,-500.0,0.00025547,2]
[327493470,1716125451755,-383.30385542,0.00025547,2]
[327493471,1716125451767,-500.0,0.00025547,2]
[327493472,1716125451778,-404.23,0.00025547,2]
[327493473,1716125451787,-500.0,0.00025547,2]
[327493474,1716125451796,-151.0,0.00025547,7]
[327493475,1716125451805,-151.0,0.00025547,7]
[327493476,1716125451815,-500.0,0.00025547,2]
[327493477,1716125451825,-988.92,0.00025547,2]
[327493478,1716125451836,-151.0,0.00025547,7]
[327493479,1716125451845,-151.0,0.00025547,7]
[327493480,1716125451855,-151.0,0.00025547,7]
[327493481,1716125451864,-151.0,0.00025547,7]
[327493482,1716125451873,-500.0,0.00025547,2]
[327493483,1716125451883,-151.0,0.00025547,7]
[327493484,1716125451892,-151.0,0.00025547,7]
[327493485,1716125451901,-500.0,0.00025547,2]
[327493486,1716125452034,-500.0,0.00025547,2]
[327493487,1716125452043,-523.26995002,0.00025547,2]
[327493488,1716125452053,-500.0,0.00025547,2]
[327493489,1716125452063,-500.0,0.00025547,2]
[327493490,1716125452072,-151.0,0.00025547,7]
[327493491,1716125452082,-151.0,0.00025547,7]
[327493492,1716125452091,-520.66097967,0.00025547,2]
[327493493,1716125452101,-500.0,0.00025547,2]
[327493494,1716125452110,-500.0,0.00025547,2]
[327493495,1716125452119,-500.0,0.00025547,2]
[327493496,1716125452128,-334.48014039,0.00025547,2]
[327493497,1716125452138,-500.0,0.00025547,2]
[327493498,1716125452149,-500.0,0.00025547,2]
[327493499,1716125452160,-500.0,0.00025547,2]
[327493500,1716125452172,-780.74,0.00025547,2]
[327493501,1716125452181,-625.58,0.00025547,2]
[327493502,1716125452190,-500.0,0.00025547,2]
[327493503,1716125452202,-500.0,0.00025547,2]
[327493504,1716125452213,-500.0,0.00025547,2]
[327493505,1716125452222,-500.0,0.00025547,2]
[327493506,1716125452231,-500.0,0.00025547,2]
[327493507,1716125452243,-500.0,0.00025547,2]
[327493508,1716125452252,-151.0,0.00025547,7]
[327493509,1716125452262,-500.0,0.00025547,2]
[327493510,1716125452271,-250.011056,0.00025547,7]
[327493511,1716125452282,-250.011056,0.00025547,7]
[327493512,1716125452292,-500.0,0.00025547,2]
[327493513,1716125452302,-250.011056,0.00025547,7]
[327493514,1716125452312,-250.011056,0.00025547,7]
[327493515,1716125452321,-500.0,0.00025547,2]
[327493516,1716125452331,-500.0,0.00025547,2]
[327493517,1716125452341,-500.0,0.00025547,2]
[327493518,1716125452351,-500.0,0.00025547,2]
[327493519,1716125452362,-500.0,0.00025547,2]
[327493520,1716125452372,-270.79909404,0.00025547,2]
[327493521,1716125452381,-500.0,0.00025547,2]
[327493522,1716125452392,-500.0,0.00025547,2]
[327493523,1716125452403,-500.0,0.00025547,2]
[327493524,1716125452412,-500.0,0.00025547,2]
[327493525,1716125452424,-500.0,0.00025547,2]
[327493526,1716125452433,-284.56269477,0.00025547,2]
[327493527,1716125452443,-500.0,0.00025547,2]
[327493528,1716125452452,-500.0,0.00025547,2]
[327493529,1716125452461,-500.0,0.00025547,2]
[327493530,1716125452471,-500.0,0.00025547,2]
[327493531,1716125452481,-619.66,0.00025547,2]
[327493532,1716125452490,-228.04387678,0.00025547,2]
[327493533,1716125452500,-500.0,0.00025547,2]
[327493534,1716125452509,-500.0,0.00025547,2]
[327493535,1716125452518,-500.0,0.00025547,2]
[327493536,1716125452527,-446.54,0.00025547,2]
[327493537,1716125452538,-227.21320887,0.00025547,2]
[327493538,1716125452547,-500.0,0.00025547,2]
[327493539,1716125452556,-500.0,0.00025547,2]
[327493540,1716125452565,-175.96147423,0.00025547,2]
[327493541,1716125452575,-500.0,0.00025547,2]
[327493542,1716125452584,-500.0,0.00025547,2]
[327493543,1716125452595,-500.0,0.00025547,2]
[327493544,1716125452604,-151.0,0.00025547,7]
[327493545,1716125452613,-151.0,0.00025547,7]
[327493546,1716125452622,-500.0,0.00025547,2]
[327493547,1716125452631,-500.0,0.00025547,2]
[327493548,1716125452640,-846.91,0.00025547,2]
[327493549,1716125452650,-500.0,0.00025547,2]
[327493550,1716125452659,-275.092981,0.00025547,7]
[327493551,1716125452668,-500.0,0.00025547,2]
[327493552,1716125452677,-578.12,0.00025547,2]
[327493553,1716125452686,-500.0,0.00025547,2]
[327493554,1716125452696,-500.0,0.00025547,2]
[327493555,1716125452705,-982.33,0.00025547,2]
[327493556,1716125452715,-500.0,0.00025547,2]
[327493557,1716125452724,-190.57646053,0.00025547,2]
[327493558,1716125452733,-1644.32,0.00025547,2]
[327493559,1716125452742,-1782.9,0.00025547,2]
[327493560,1716125452752,-500.0,0.00025547,2]
[327493561,1716125452761,-700.7,0.00025547,2]
[327493562,1716125452770,-1923.11,0.00025547,2]
[327493563,1716125452780,-151.0,0.00025547,7]
[327493564,1716125452789,-1095.98,0.00025547,2]
[327493565,1716125452799,-151.0,0.00025547,7]
[327493566,1716125452808,-151.0,0.00025547,7]
[327493567,1716125452817,-1383.57,0.00025547,2]
[327493568,1716125452826,-1151.71,0.00025547,2]
[327493569,1716125452836,-500.0,0.00025547,2]
[327493570,1716125452845,-1219.6,0.00025547,2]
[327493571,1716125452855,-530.40374117,0.00025547,2]
[327493572,1716125452865,-500.0,0.00025547,2]
[327493573,1716125452874,-848.32,0.00025547,2]
[327493574,1716125452884,-500.0,0.00025547,2]
[327493575,1716125452894,-500.0,0.00025547,2]
[327493576,1716125452903,-777.11,0.00025547,2]
[327493577,1716125452912,-500.0,0.00025547,2]
[327493578,1716125452921,-1055.0,0.00025547,2]
[327493579,1716125452930,-335.93265262,0.00025547,2]
[327493580,1716125452940,-512.59,0.00025547,2]
[327493581,1716125452950,-500.0,0.00025547,2]
[327493582,1716125452959,-500.0,0.00025547,2]
[327493583,1716125452969,-500.0,0.00025547,2]
[327493584,1716125452978,-500.0,0.00025547,2]
[327493585,1716125452987,-541.07,0.00025547,2]
[327493586,1716125452997,-500.0,0.00025547,2]
[327493587,1716125453007,-828.51,0.00025547,2]
[327493588,1716125453017,-253.99,0.00025547,2]
[327493589,1716125453028,-500.0,0.00025547,2]
[327493590,1716125453038,-989.78,0.00025547,2]
[327493591,1716125453047,-500.0,0.00025547,2]
[327493592,1716125453056,-500.0,0.00025547,2]
[327493593,1716125453065,-500.0,0.00025547,2]
[327493594,1716125453074,-500.0,0.00025547,2]
[327493595,1716125453083,-500.0,0.00025547,2]
[327493596,1716125453092,-1162.85,0.00025547,2]
[327493597,1716125453101,-500.0,0.00025547,2]
[327493598,1716125453111,-540.7,0.00025547,2]
[327493599,1716125453120,-500.0,0.00025547,2]
[327493600,1716125453129,-3682.75,0.00025547,2]
[327493601,1716125453138,-500.0,0.00025547,2]
[327493602,1716125453148,-500.0,0.00025547,2]
[327493603,1716125453157,-1892.05,0.00025547,2]
[327493604,1716125453170,-500.0,0.00025547,2]
[327493605,1716125453179,-1015.08,0.00025547,2]
[327493606,1716125453189,-878.61,0.00025547,2]
[327493607,1716125453199,-500.0,0.00025547,2]
[327493608,1716125453208,-500.0,0.00025547,2]
[327493609,1716125453217,-500.0,0.00025547,2]
[327493610,1716125453227,-871.12,0.00025547,2]
[327493611,1716125453235,-500.0,0.00025547,2]
[327493612,1716125453247,-500.0,0.00025547,2]
[327493613,1716125453257,-160.277292,0.00025547,7]
[327493614,1716125453266,-160.277292,0.00025547,7]
[327493615,1716125453275,-500.0,0.00025547,2]
[327493616,1716125453287,-1467.74,0.00025547,2]
[327493617,1716125453296,-160.277292,0.00025547,7]
[327493618,1716125453305,-160.277292,0.00025547,7]
[327493619,1716125453314,-500.0,0.00025547,2]
[327493620,1716125453323,-1893.57,0.00025547,2]
[327493621,1716125453332,-193.23,0.00025547,2]
[327493622,1716125453342,-533.14,0.00025547,2]
[327493623,1716125453351,-500.0,0.00025547,2]
[327493624,1716125453360,-500.0,0.00025547,2]
[327493625,1716125453370,-500.0,0.00025547,2]
[327493626,1716125453380,-500.0,0.00025547,2]
[327493627,1716125453389,-656.36,0.00025547,2]
[327493628,1716125453399,-615.22,0.00025547,2]
[327493629,1716125453408,-810.74,0.00025547,2]
[327493630,1716125453419,-549.91999108,0.00025547,2]
[327493631,1716125453429,-500.0,0.00025547,2]
[327493632,1716125453438,-997.13,0.00025547,2]
[327493633,1716125453448,-837.85,0.00025547,2]
[327493634,1716125453457,-674.79,0.00025547,2]
[327493635,1716125453468,-2150.8,0.00025547,2]
[327493636,1716125453477,-500.0,0.00025547,2]
[327493637,1716125453486,-500.0,0.00025547,2]
[327493638,1716125453496,-168.77,0.00025547,2]
[327493639,1716125453505,-827.03,0.00025547,2]
[327493640,1716125453515,-500.0,0.00025547,2]
[327493641,1716125453523,-151.0,0.00025547,7]
[327493642,1716125453534,-151.0,0.00025547,7]
[327493643,1716125453543,-2747.6,0.00025547,2]
[327493644,1716125453553,-500.0,0.00025547,2]
[327493645,1716125453562,-268.5682211,0.00025547,2]
[327493646,1716125453572,-1069.79,0.00025547,2]
[327493647,1716125453581,-500.0,0.00025547,2]
[327493648,1716125453591,-206.14818,0.00025547,7]
[327493649,1716125453600,-206.14818,0.00025547,7]
[327493650,1716125453609,-151.0,0.00025547,7]
[327493651,1716125453619,-151.0,0.00025547,7]
[327493652,1716125453628,-4457.98,0.00025547,2]
[327493653,1716125453637,-206.14818,0.00025547,7]
[327493654,1716125453647,-206.14818,0.00025547,7]
[327493655,1716125453655,-151.0,0.00025547,7]
[327493656,1716125453664,-500.0,0.00025547,2]
[327493657,1716125453674,-266.553041,0.00025547,7]
[327493658,1716125453683,-500.0,0.00025547,2]
[327493659,1716125453693,-500.0,0.00025547,2]
[327493660,1716125453702,-925.95,0.00025547,2]
[327493661,1716125453711,-540.52788835,0.00025547,2]
[327493662,1716125453722,-896.89,0.00025547,2]
[327493663,1716125453732,-500.0,0.00025547,2]
[327493664,1716125453742,-155.06718407,0.00025547,2]
[327493665,1716125453751,-485.49,0.00025547,2]
[327493666,1716125453760,-641.64121939,0.00025547,2]
[327493667,1716125453769,-997.04,0.00025547,2]
[327493668,1716125453779,-6546.3,0.00025547,2]
[327493669,1716125453789,-500.0,0.00025547,2]
[327493670,1716125453799,-744.57,0.00025547,2]
[327493671,1716125453809,-1036.81,0.00025547,2]
[327493672,1716125453819,-500.0,0.00025547,2]
[327493673,1716125453828,-500.0,0.00025547,2]
[327493674,1716125453838,-500.0,0.00025547,2]
[327493675,1716125453848,-627.97660369,0.00025547,2]
[327493676,1716125453857,-500.0,0.00025547,2]
[327493677,1716125453867,-2745.43,0.00025547,2]
[327493678,1716125453877,-500.0,0.00025547,2]
[327493679,1716125453886,-500.0,0.00025547,2]
[327493680,1716125453896,-1015.07,0.00025547,2]
[327493681,1716125453905,-521.3,0.00025547,2]
[327493682,1716125453916,-506.363244,0.00025547,7]
[327493683,1716125453926,-632.03,0.00025564,2]
[327493684,1716125453936,-868.1,0.00025584,2]
[327493685,1716125453946,-24008.46879647,0.00025612,2]
[327493686,1716125453956,-506.363244,0.00025612,7]
[327493687,1716125453966,-341.01249785,0.00025668,2]
[327493688,1716125453976,-155.12,0.00025682,2]
[327493689,1716125453986,-171.28,0.00025688,2]
[327493690,1716125453995,-180.10524634,0.00025719,2]
[327493691,1716125454005,-151.0,0.00025796,7]
[327493692,1716125454015,-151.0,0.00025796,7]
[327493693,1716125454024,-151.0,0.00025796,7]
[327493694,1716125454035,-248.088801,0.00025796,7]
[327493695,1716125454045,-151.0,0.00025796,7]
[327493696,1716125454054,-155.12,0.00025811,2]
[327493697,1716125454063,-657.56,0.0002582,2]
[327493698,1716125454073,-506.18,0.0002582,2]
[327493699,1716125454083,-500.0,0.0002582,2]
[327493700,1716125454093,-500.0,0.0002582,2]
[327493701,1716125454103,-500.0,0.0002582,2]
[327493702,1716125454112,-500.0,0.0002582,2]
[327493703,1716125454122,-879.12,0.0002582,2]
[327493704,1716125454131,-671.24,0.0002582,2]
[327493705,1716125454140,-500.0,0.0002582,2]
[327493706,1716125454151,-500.0,0.0002582,2]
[327493707,1716125454163,-609.43,0.0002582,2]
[327493708,1716125454174,-2500.45,0.0002582,2]
[327493709,1716125454184,-500.0,0.0002582,2]
[327493710,1716125454194,-843.99,0.0002582,2]
[327493711,1716125454204,-500.0,0.0002582,2]
[327493712,1716125454213,-500.0,0.0002582,2]
[327493713,1716125454223,-500.0,0.0002582,2]
[327493714,1716125454235,-568.61,0.0002582,2]
[327493715,1716125454245,-817.19,0.0002582,2]
[327493716,1716125454254,-500.0,0.0002582,2]
[327493717,1716125454263,-854.39,0.0002582,2]
[327493718,1716125454274,-666.0,0.0002582,2]
[327493719,1716125454400,-500.0,0.0002582,2]
[327493720,1716125454423,-637.12,0.0002582,2]
[327493721,1716125454433,-857.61,0.0002582,2]
[327493722,1716125454443,-500.0,0.0002582,2]
[327493723,1716125454452,-500.0,0.0002582,2]
[327493724,1716125454462,-518.83,0.0002582,2]
[327493725,1716125454471,-500.0,0.0002582,2]
[327493726,1716125454480,-726.23,0.0002582,2]
[327493727,1716125454490,-762.51,0.0002582,2]
[327493728,1716125454499,-500.0,0.0002582,2]
[327493729,1716125454509,-1281.27,0.0002582,2]
[327493730,1716125454518,-1187.11,0.0002582,2]
[327493731,1716125454529,-820.48,0.0002582,2]
[327493732,1716125454539,-500.0,0.0002582,2]
[327493733,1716125454548,-1052.6,0.0002582,2]
[327493734,1716125454558,-763.43,0.0002582,2]
[327493735,1716125454567,-1150.72,0.0002582,2]
[327493736,1716125454577,-500.0,0.0002582,2]
[327493737,1716125454587,-3667.38,0.0002582,2]
[327493738,1716125454597,-1211.58,0.0002582,2]
[327493739,1716125454606,-986.86,0.0002582,2]
[327493740,1716125454616,-500.0,0.0002582,2]
[327493741,1716125454626,-500.0,0.0002582,2]
[327493742,1716125454635,-740.89,0.0002582,2]
[327493743,1716125454644,-533.27,0.0002582,2]
[327493744,1716125454654,-500.0,0.0002582,2]
[327493745,1716125454663,-500.0,0.0002582,2]
[327493746,1716125454672,-151.0,0.0002582,7]
[327493747,1716125454682,-975.8,0.0002582,2]
[327493748,1716125454691,-1384.87,0.0002582,2]
[327493749,1716125454700,-500.0,0.0002582,2]
[327493750,1716125454710,-206.14818,0.0002582,7]
[327493751,1716125454719,-1006.42,0.0002582,2]
[327493752,1716125454729,-151.0,0.0002582,7]
[327493753,1716125454739,-206.14818,0.0002582,7]
[327493754,1716125454748,-500.0,0.0002582,2]
[327493755,1716125454757,-2304.66,0.0002582,2]
[327493756,1716125454766,-2722.15,0.0002582,2]
[327493757,1716125454776,-3116.58,0.0002582,2]
[327493758,1716125454787,-540.38564118,0.0002582,2]
[327493759,1716125454796,-500.0,0.0002582,2]
[327493760,1716125454805,-524.71,0.0002582,2]
[327493761,1716125454815,-942.59,0.0002582,2]
[327493762,1716125454826,-500.0,0.0002582,2]
[327493763,1716125454835,-500.0,0.0002582,2]
[327493764,1716125454846,-500.0,0.0002582,2]
[327493765,1716125454856,-15816.75,0.0002582,2]
[327493766,1716125454866,-500.0,0.0002582,2]
[327493767,1716125454877,-849.34,0.0002582,2]
[327493768,1716125454887,-500.0,0.0002582,2]
[327493769,1716125454897,-500.0,0.0002582,2]
[327493770,1716125454906,-500.0,0.0002582,2]
[327493771,1716125454916,-500.0,0.0002582,2]
[327493772,1716125454926,-500.0,0.0002582,2]
[327493773,1716125454936,-500.0,0.0002582,2]
[327493774,1716125454946,-500.0,0.0002582,2]
[327493775,1716125454956,-1608.23,0.0002582,2]
[327493776,1716125454966,-500.0,0.0002582,2]
[327493777,1716125454976,-9478.72,0.0002582,2]
[327493778,1716125454986,-500.0,0.0002582,2]
[327493779,1716125454996,-500.0,0.00025821,2]
[327493780,1716125455006,-500.0,0.00025821,2]
[327493781,1716125455016,-500.0,0.00025821,2]
[327493782,1716125455026,-500.0,0.00025821,2]
[327493783,1716125455037,-500.0,0.00025821,2]
[327493784,1716125455046,-500.0,0.00025821,2]
[327493785,1716125455056,-504.80395792,0.00025821,2]
[327493786,1716125455065,-500.0,0.00025821,2]
[327493787,1716125455075,-500.0,0.00025821,2]
[327493788,1716125455085,-500.0,0.00025821,7]
[327493789,1716125455095,-500.0,0.00025821,2]
[327493790,1716125455104,-500.0,0.00025821,2]
[327493791,1716125455113,-500.0,0.00025821,2]
[327493792,1716125455123,-500.0,0.00025821,2]
[327493793,1716125455133,-543.97174642,0.00025821,2]
[327493794,1716125455142,-500.0,0.00025821,2]
[327493795,1716125455152,-500.0,0.00025821,2]
[327493796,1716125455167,-500.0,0.00025821,2]
[327493797,1716125455176,-606.15,0.00025821,2]
[327493798,1716125455187,-500.0,0.00025821,2]
[327493799,1716125455196,-500.0,0.00025821,2]
[327493800,1716125455208,-500.0,0.00025821,2]
[327493801,1716125455218,-500.0,0.00025821,2]
[327493802,1716125455228,-500.0,0.00025821,2]
[327493803,1716125455239,-500.0,0.00025821,2]
[327493804,1716125455249,-245.81626898,0.00025821,2]
[327493805,1716125455258,-403.82,0.00025821,2]
[327493806,1716125455268,-500.0,0.00025821,2]
[327493807,1716125455277,-500.0,0.00025821,2]
[327493808,1716125455288,-500.0,0.00025821,2]
[327493809,1716125455297,-500.0,0.00025821,2]
[327493810,1716125455306,-500.0,0.00025821,2]
[327493811,1716125455316,-500.0,0.00025821,2]
[327493812,1716125455326,-500.0,0.00025821,2]
[327493813,1716125455336,-500.0,0.00025821,2]
[327493814,1716125455345,-500.0,0.00025821,2]
[327493815,1716125455355,-500.0,0.00025821,2]
[327493816,1716125455365,-500.0,0.00025821,2]
[327493817,1716125455374,-500.0,0.00025821,2]
[327493818,1716125455384,-500.0,0.00025821,2]
[327493819,1716125455394,-370.9,0.00025821,2]
[327493820,1716125455404,-500.0,0.00025821,2]
[327493821,1716125455413,-362.9,0.00025821,2]
[327493822,1716125455422,-500.0,0.00025821,2]
[327493823,1716125455432,-500.0,0.00025821,2]
[327493824,1716125455442,-500.0,0.00025821,2]
[327493825,1716125455452,-500.0,0.00025821,2]
[327493826,1716125455462,-500.0,0.00025821,2]
[327493827,1716125455472,-815.2,0.00025821,2]
[327493828,1716125455481,-615.48,0.00025821,2]
[327493829,1716125455491,-500.0,0.00025821,2]
[327493830,1716125455500,-500.0,0.00025821,2]
[327493831,1716125455510,-151.0,0.00025821,7]
[327493832,1716125455519,-557.14,0.00025821,2]
[327493833,1716125455530,-500.0,0.00025821,2]
[327493834,1716125455540,-176.25687551,0.00025821,2]
[327493835,1716125455550,-500.0,0.00025821,2]
[327493836,1716125455559,-500.0,0.00025821,2]
[327493837,1716125455568,-500.0,0.00025821,2]
[327493838,1716125455578,-500.0,0.00025821,2]
[327493839,1716125455588,-151.0,0.00025821,7]
[327493840,1716125455597,-151.0,0.00025821,7]
[327493841,1716125455607,-577.72478871,0.00025821,2]
[327493842,1716125455616,-151.0,0.00025821,7]
[327493843,1716125455626,-500.0,0.00025821,2]
[327493844,1716125455636,-500.0,0.00025821,2]